bitfinex-derivatives/quotes_SOLF0:USTF0_20241016
["timestamp","ask_amount","ask_price","bid_price","bid_amount"]
[1729088837305,3.2056,155.98,155.95,3.2061]
[1729088837499,3.2056,155.98,155.91,29.53]
[1729088837705,9.3606,156.02,155.9,6.6]
[1729088837905,3.2064,155.95,155.91,3.207]
[1729088838299,3.2064,155.95,155.92,3.2068]
[1729088838806,9.3606,156.02,155.92,3.2068]
[1729088839107,3.2061,155.96,155.92,3.2068]
[1729088839800,9.3606,156.02,155.9,6.6]
[1729088840104,3.2058,155.98,155.9,6.6]
[1729088840305,9.3606,156.02,155.9,6.6]
[1729088841212,3.2057,155.98,155.95,3.2061]
[1729088842109,9.3606,156.02,155.9,6.6]
[1729088842110,3.2056,155.99,155.96,3.206]
[1729088842310,2.7606,156.02,155.92,29.53]
[1729088843008,3.2054,156.0,155.96,3.2059]
[1729088843209,3.2054,156.0,155.95,3.1431961]
[1729088843417,3.2054,156.0,155.97,3.2057]
[1729088844000,4.646,156.02,155.99,3.2053]
[1729088844200,1.4411,156.02,155.95,6.6]
[1729088844510,3.2043,156.05,156.02,3.2048]
[1729088844712,1.4293,156.08,156.01,3.1928947]
[1729088845015,1.4293,156.08,156.0,6.6]
[1729088846312,3.2041,156.06,156.02,3.2047]
[1729088846616,1.4293,156.08,156.0,6.6]
[1729088847912,1.4293,156.08,155.98,6.6]
[1729088848507,6.6,156.07,155.95,6.6]
[1729088848710,6.6,156.07,155.95,9.81561338]
[1729088848910,6.6,156.07,155.98,3.2056]
[1729088849214,29.53,156.06,155.95,9.81561338]
[1729088849415,3.2052,156.01,155.95,9.81561338]
[1729088849619,29.53,156.06,155.95,9.81561338]
[1729088850112,3.2052,156.01,155.97,3.2057]
[1729088850513,3.2052,156.01,155.95,9.81561338]
[1729088850712,6.6,156.07,156.02,3.2047]
[1729088850713,3.2043,156.05,156.02,3.2047]
[1729088850929,1.4293,156.08,155.96,29.53]
[1729088851119,1.4293,156.08,155.97,6.6]
[1729088851413,3.2041,156.06,156.03,3.2045]
[1729088853819,1.4293,156.08,156.03,3.2045]
[1729088854117,1.4293,156.08,156.04,3.2043]
[1729088854314,1.4293,156.08,156.02,6.6]
[1729088854516,4.633,156.08,156.02,6.6]
[1729088854720,4.633,156.08,156.04,3.2042]
[1729088855428,3.204,156.07,156.03,3.2045]
[1729088855911,1.4293,156.08,156.02,6.6]
[1729088856115,3.2043,156.05,156.02,6.6]
[1729088857024,3.2043,156.05,156.02,9.8047]
[1729088857416,3.2039,156.07,156.04,3.2043]
[1729088857818,1.4293,156.08,156.02,6.6]
[1729088858520,3.2044,156.05,156.02,9.8047]
[1729088858724,1.4293,156.08,155.96,29.53]
[1729088858925,1.4293,156.08,155.99,6.6]
[1729088859232,3.2052,156.01,155.99,6.6]
[1729088859526,8.0293,156.08,155.97,6.6]
[1729088859724,3.2052,156.01,155.97,6.6]
[1729088859917,8.0293,156.08,155.93,29.53]
[1729088860118,29.53,156.07,155.94,6.6]
[1729088860318,3.2053,156.0,155.97,3.2058]
[1729088860727,1.3201,156.06,155.95,3.21456136]
[1729088861023,1.3201,156.06,155.94,6.6]
[1729088861426,3.205,156.02,155.98,3.2055]
[1729088861621,1.3201,156.06,155.98,3.2055]
[1729088862528,1.3201,156.06,155.94,6.6]
[1729088862829,3.2057,155.98,155.93,6.6]
[1729088863022,29.53,156.04,155.93,6.6]
[1729088863225,6.6,156.03,155.93,3.2066]
[1729088863524,6.6,156.03,155.92,6.6]
[1729088863928,3.2067,155.93,155.92,6.6]
[1729088864123,29.53,156.01,155.89,6.6]
[1729088864323,2.6677,156.0,155.89,6.6]
[1729088864627,3.2066,155.94,155.91,3.2069]
[1729088866029,3.2064,155.95,155.91,3.2069]
[1729088866834,3.2061,155.97,155.89,6.6]
[1729088867030,2.6677,156.0,155.89,6.6]
[1729088868030,3.2058,155.98,155.94,3.2064]
[1729088868532,2.6677,156.0,155.91,29.53]
[1729088869631,3.2058,155.98,155.91,29.53]
[1729088870029,2.6677,156.0,155.91,29.53]
[1729088870532,3.2055,155.99,155.93,3.2065]
[1729088870736,3.2055,155.99,155.91,29.53]
[1729088871337,3.2055,155.99,155.95,3.2061]
[1729088871637,2.6677,156.0,155.91,29.53]
[1729088871936,2.6677,156.0,155.93,3.2065]
[1729088872130,3.2058,155.98,155.91,29.53]
[1729088872643,3.2065,155.94,155.91,6.6]
[1729088872939,3.2065,155.94,155.89,6.6]
[1729088873123,3.2065,155.94,155.91,3.207]
[1729088873324,3.2068,155.93,155.88,69.2]
[1729088873531,3.2068,155.93,155.88,75.8]
[1729088873936,3.2068,155.93,155.9,3.2072]
[1729088877739,1.3948,155.97,155.88,6.6]
[1729088877939,3.207,155.92,155.89,3.2074]
[1729088878540,1.3948,155.97,155.86,3.208]
[1729088878742,1.3948,155.97,155.85,6.6]
[1729088879039,3.2078,155.88,155.85,3.2083]
[1729088879441,1.3948,155.97,155.83,9.82910871]
[1729088879642,3.2073,155.9,155.87,3.2078]
[1729088880140,3.2078,155.88,155.85,3.2082]
[1729088880438,6.6,155.93,155.83,3.22244321]
[1729088880638,3.2072,155.91,155.87,3.2077]
[1729088880836,6.6,155.96,155.85,29.53]
[1729088881138,3.2067,155.93,155.88,3.2076]
[1729088881340,6.6,155.96,155.87,6.6]
[1729088881730,3.2072,155.91,155.87,9.8077]
[1729088881930,6.6,155.96,155.87,6.6]
[1729088882346,3.2069,155.93,155.9,3.2072]
[1729088882541,1.3948,155.97,155.87,6.6]
[1729088882542,1.3948,155.97,155.88,18.49]
[1729088882730,18.49,156.03,155.91,18.49]
[1729088882929,5.8731,156.0,155.96,3.2059]
[1729088883741,2.6677,156.0,155.94,3.2064]
[1729088884133,3.2058,155.98,155.92,6.6]
[1729088884437,3.2058,155.98,155.95,3.2061]
[1729088884833,2.6677,156.0,155.92,9.72972938]
[1729088885636,3.2049,156.02,155.92,39.28972938]
[1729088885946,2.7028,156.05,155.94,29.56]
[1729088886245,2.7028,156.05,155.98,3.2055]
[1729088886246,3.2046,156.03,155.98,3.2055]
[1729088886443,3.2046,156.03,155.94,29.56]
[1729088886641,3.205,156.02,155.97,3.2057]
[1729088887138,2.7028,156.05,155.92,32.68972938]
[1729088887346,2.7028,156.05,155.93,6.6]
[1729088887638,29.56,156.03,155.9,6.6]
[1729088887847,3.2062,155.96,155.92,3.2068]
[1729088888736,6.6,156.02,155.89,6.6]
[1729088889741,29.56,156.0,155.84,29.56]
[1729088889946,1.4454,155.99,155.85,6.6]
[1729088890631,3.2068,155.93,155.89,3.2075]
[1729088890835,1.4454,155.99,155.85,6.6]
[1729088891730,3.2064,155.95,155.91,3.207]
[1729088892542,1.4454,155.99,155.85,6.6]
[1729088892732,3.2066,155.94,155.9,3.2073]
[1729088892931,1.4454,155.99,155.9,3.16957414]
[1729088893140,3.2064,155.95,155.91,3.207]
[1729088893542,1.4454,155.99,155.85,6.6]
[1729088893747,1.4454,155.99,155.89,3.2074]
[1729088894542,3.2068,155.93,155.89,3.2074]
[1729088894740,3.2068,155.93,155.84,29.56]
[1729088894741,6.6,155.97,155.84,29.56]
[1729088894944,1.4016,155.96,155.85,6.6]
[1729088895140,2.7102,155.96,155.85,6.6]
[1729088895649,3.2069,155.93,155.89,3.2074]
[1729088896148,2.7102,155.96,155.85,6.6]
[1729088896742,2.7102,155.96,155.81,98.8]
[1729088896743,3.2079,155.88,155.84,3.2084]
[1729088896940,3.2079,155.88,155.83,6.6]
[1729088897139,2.7102,155.96,155.83,6.6]
[1729088897435,2.7102,155.96,155.83,9.8331455]
[1729088898139,3.208,155.87,155.84,3.2085]
[1729088898746,3.208,155.87,155.83,13.04270794]
[1729088899141,3.208,155.87,155.83,9.8086]
[1729088899342,6.6,155.92,155.83,3.2086]
[1729088899537,1.4224,155.91,155.81,3.209]
[1729088899943,3.2084,155.85,155.8,6.6]
[1729088900144,1.4224,155.91,155.82,3.2089]
[1729088900354,3.2076,155.89,155.82,3.2089]
[1729088900545,1.4224,155.91,155.82,3.2089]
[1729088900747,1.4224,155.91,155.81,3.23440708]
[1729088900945,3.2078,155.88,155.81,3.23440708]
[1729088901541,3.2078,155.88,155.84,3.2084]
[1729088901849,1.4224,155.91,155.8,36.16]
[1729088902439,1.4224,155.91,155.8,39.28917094]
[1729088902647,3.2077,155.88,155.8,39.28917094]
[1729088902951,1.4224,155.91,155.8,39.28917094]
[1729088903144,1.4224,155.91,155.8,32.68917094]
[1729088903346,1.4224,155.91,155.81,6.6]
[1729088903642,3.2075,155.9,155.86,3.208]
[1729088904149,1.4224,155.91,155.86,3.208]
[1729088904451,1.4224,155.91,155.81,6.6]
[1729088904840,3.2076,155.89,155.86,3.2081]
[1729088905145,1.4224,155.91,155.86,3.2081]
[1729088905554,3.2078,155.88,155.84,3.2084]
[1729088905752,1.4224,155.91,155.81,6.6]
[1729088905947,1.4224,155.91,155.83,18.47]
[1729088906148,3.2074,155.9,155.83,18.47]
[1729088906645,3.2066,155.94,155.85,18.47]
[1729088906854,6.6,155.99,155.88,18.47]
[1729088907046,6.6,155.99,155.91,3.207]
[1729088907047,3.2064,155.95,155.91,3.207]
[1729088907352,4.1096,156.0,155.91,6.6]
[1729088907952,4.1096,156.0,155.92,3.23380635]
[1729088907953,3.2056,155.99,155.92,3.23380635]
[1729088908161,3.2056,155.99,155.84,69.28]
[1729088908162,4.1096,156.0,155.88,6.6]
[1729088908353,4.1096,156.0,155.9,3.2072]
[1729088908354,3.2066,155.94,155.9,3.2072]
[1729088909252,3.2064,155.95,155.91,3.207]
[1729088909960,3.2065,155.94,155.91,3.207]
[1729088910152,18.47,155.99,155.91,3.2069]
[1729088911054,3.2064,155.95,155.91,3.2069]
[1729088911447,4.1096,156.0,155.9,18.47]
[1729088912463,3.2058,155.98,155.94,3.2064]
[1729088912654,4.1096,156.0,155.9,18.47]
[1729088912963,3.2049,156.02,155.98,3.2055]
[1729088913165,6.6,156.07,155.98,18.47]
[1729088913568,18.47,156.06,155.96,6.6]
[1729088913855,36.15,156.07,155.96,6.6]
[1729088914062,36.15,156.07,155.96,9.8059]
[1729088914277,36.15,156.07,155.91,29.55]
[1729088914562,3.2055,155.99,155.96,3.2061]
[1729088914963,36.15,156.07,155.94,6.6]
[1729088915355,29.55,156.07,155.94,6.6]
[1729088915554,6.6,156.06,155.94,6.6]
[1729088916062,3.2054,156.0,155.96,3.2059]
[1729088916455,3.2062,155.96,155.92,3.2068]
[1729088916654,29.55,156.0,155.89,6.6]
[1729088916655,4.1046,155.99,155.89,6.6]
[1729088917164,3.2067,155.93,155.89,6.6]
[1729088918057,3.2065,155.94,155.9,3.2073]
[1729088918258,4.1046,155.99,155.89,6.6]
[1729088918668,3.2062,155.96,155.92,3.2068]
[1729088918868,4.1046,155.99,155.92,3.2068]
[1729088919164,4.1046,155.99,155.89,6.6]
[1729088919357,3.2064,155.95,155.91,3.207]
[1729088919558,4.1046,155.99,155.85,32.75530895]
[1729088919758,29.55,155.97,155.86,6.6]
[1729088920170,3.2072,155.91,155.88,3.2077]
[1729088920369,29.55,155.97,155.86,6.6]
[1729088920868,4.1046,155.99,155.86,6.6]
[1729088921765,3.2064,155.95,155.91,3.207]
[1729088921962,4.1046,155.99,155.86,6.6]
[1729088922454,3.2066,155.94,155.9,3.2071]
[1729088923065,3.2066,155.94,155.91,3.207]
[1729088925278,3.2068,155.93,155.89,3.2074]
[1729088925462,4.1046,155.99,155.89,3.2074]
[1729088926169,3.2061,155.96,155.89,3.2074]
[1729088926365,4.1046,155.99,155.89,3.2074]
[1729088926761,3.2069,155.93,155.89,3.2074]
[1729088926967,6.6,155.96,155.82,29.55]
[1729088927276,2.7269,155.92,155.83,6.6]
[1729088927567,3.2077,155.89,155.85,3.2082]
[1729088927766,2.7269,155.92,155.84,3.25572445]
[1729088928072,2.7269,155.92,155.83,6.6]
[1729088928073,3.2079,155.87,155.83,9.8086]
[1729088928268,3.2079,155.87,155.83,6.6]
[1729088928465,2.7269,155.92,155.83,6.6]
[1729088928672,2.7269,155.92,155.84,3.2084]
[1729088928966,6.6,155.91,155.76,102.06080612]
[1729088929172,29.55,155.89,155.76,72.51080612]
[1729088929363,29.55,155.89,155.77,6.6]
[1729088929863,29.55,155.89,155.78,3.2098]
[1729088930269,3.2091,155.82,155.78,3.2098]
[1729088930469,3.2091,155.82,155.77,6.6]
[1729088930665,29.55,155.89,155.78,3.2098]
[1729088931071,3.2082,155.86,155.77,6.6]
[1729088931266,6.6,155.87,155.79,3.2095]
[1729088931463,6.6,155.87,155.77,6.6]
[1729088931670,3.2092,155.81,155.77,6.6]
[1729088931869,6.6,155.87,155.77,6.6]
[1729088932064,29.55,155.86,155.75,6.6]
[1729088932265,29.55,155.86,155.73,6.6]
[1729088932466,29.55,155.86,155.74,3.2105]
[1729088932876,3.2099,155.78,155.75,3.2103]
[1729088933871,3.2097,155.79,155.75,3.2103]
[1729088936167,29.55,155.86,155.75,3.2103]
[1729088936368,3.2098,155.78,155.74,3.2105]
[1729088936569,6.6,155.82,155.72,3.28850227]
[1729088936768,4.246,155.81,155.72,6.6]
[1729088936970,3.2097,155.79,155.73,3.2107]
[1729088937179,4.246,155.81,155.73,3.2107]
[1729088937670,3.2102,155.77,155.73,3.2107]
[1729088937878,4.246,155.81,155.68,69.28]
[1729088937879,22.746,155.81,155.7,6.6]
[1729088938278,22.746,155.81,155.69,18.5]
[1729088938479,22.746,155.81,155.7,6.6]
[1729088938770,4.246,155.81,155.72,18.5]
[1729088939175,3.2101,155.77,155.72,18.5]
[1729088940575,3.2101,155.77,155.73,3.2107]
[1729088940770,18.5,155.79,155.68,69.28]
[1729088940970,18.5,155.79,155.68,75.88]
[1729088941172,18.5,155.79,155.68,79.07401643]
[1729088941370,3.2107,155.74,155.7,3.2114]
[1729088941770,3.18116899,155.74,155.7,3.2114]
[1729088942380,3.18116899,155.74,155.71,3.2112]
[1729088943271,3.2104,155.75,155.71,3.2112]
[1729088943473,18.5,155.79,155.71,3.2112]
[1729088944175,3.2106,155.74,155.71,3.2112]
[1729088944567,18.5,155.77,155.66,18.5]
[1729088944771,3.211,155.73,155.69,3.2115]
[1729088945174,25.1,155.77,155.69,3.2115]
[1729088945677,18.5,155.74,155.66,6.6]
[1729088945877,18.5,155.74,155.68,3.2118]
[1729088946382,18.5,155.74,155.67,3.212]
[1729088946773,18.5,155.72,155.6,69.32]
[1729088946983,2.8155,155.71,155.61,6.6]
[1729088947480,18.5,155.69,155.61,6.6]
[1729088947686,18.5,155.67,155.52,69.34]
[1729088947981,18.5,155.67,155.59,3.2135]
[1729088947982,3.213,155.63,155.59,3.2135]
[1729088948188,1.4319,155.66,155.57,18.5]
[1729088948390,3.213,155.63,155.59,3.2136]
[1729088948681,19.9319,155.66,155.54,18.5]
[1729088949082,3.213,155.63,155.54,18.5]
[1729088949388,19.9319,155.66,155.54,18.5]
[1729088949682,3.2137,155.59,155.52,75.94]
[1729088949872,3.2137,155.59,155.52,6.6]
[1729088950278,3.214,155.58,155.51,3.13636655]
[1729088950476,29.62,155.61,155.45,29.62]
[1729088950685,1.37,155.57,155.46,7.78139294]
[1729088950995,1.37,155.57,155.49,3.2156]
[1729088951282,7.97,155.57,155.44,69.36]
[1729088951482,3.2151,155.53,155.47,3.2162]
[1729088951778,3.2151,155.53,155.44,6.6]
[1729088952279,3.2154,155.51,155.42,9.76646329]
[1729088952481,3.2154,155.51,155.42,6.6]
[1729088952685,3.2154,155.51,155.38,29.62]
[1729088952885,3.2154,155.51,155.36,69.36]
[1729088952886,7.9333,155.52,155.42,29.62]
[1729088953188,7.9333,155.52,155.42,32.76867211]
[1729088953478,7.9333,155.52,155.42,3.14867211]
[1729088953685,7.9333,155.52,155.39,6.6]
[1729088953874,7.9333,155.52,155.4,1.18195991]
[1729088954076,7.9333,155.52,155.4,4.42580274]
[1729088954277,7.9333,155.52,155.41,1.18195991]
[1729088954477,3.2157,155.5,155.42,3.22455147]
[1729088954679,29.62,155.51,155.38,6.6]
[1729088954882,29.62,155.51,155.39,1.18212028]
[1729088955081,3.2157,155.5,155.44,3.2168]
[1729088955384,6.6,155.51,155.38,39.48667095]
[1729088955585,9.8155,155.51,155.45,3.2164]
[1729088955896,9.8155,155.51,155.38,39.48667095]
[1729088956079,6.6,155.51,155.47,3.2161]
[1729088956383,6.6,155.51,155.38,39.48667095]
[1729088956590,6.6,155.51,155.45,3.2164]
[1729088956781,9.8155,155.51,155.38,39.48667095]
[1729088956982,6.6,155.51,155.39,1.18209556]
[1729088957588,36.22,155.51,155.39,1.18209556]
[1729088957782,36.22,155.51,155.38,3.26667095]
[1729088958091,36.22,155.51,155.37,6.6]
[1729088958279,36.22,155.51,155.38,4.47125729]
[1729088958480,3.2164,155.46,155.4,3.2175]
[1729088958881,36.22,155.51,155.38,3.28894892]
[1729088959087,3.2164,155.46,155.4,3.2175]
[1729088959387,6.6,155.46,155.31,29.62]
[1729088959589,3.2171,155.43,155.32,7.78243737]
[1729088959889,3.2171,155.43,155.33,1.18243737]
[1729088960092,3.2171,155.43,155.37,3.2181]
[1729088960687,1.334,155.44,155.35,3.20068202]
[1729088960889,1.334,155.44,155.38,3.2179]
[1729088961091,1.334,155.44,155.36,3.26373697]
[1729088961291,1.334,155.44,155.39,3.2178]
[1729088961491,1.334,155.44,155.36,3.16947625]
[1729088961698,1.334,155.44,155.33,6.6]
[1729088961903,1.334,155.44,155.34,1.18252022]
[1729088962193,1.334,155.44,155.34,4.35003421]
[1729088962396,1.334,155.44,155.35,1.18252022]
[1729088962693,1.334,155.44,155.35,3.21030954]
[1729088962888,1.334,155.44,155.36,1.18245752]
[1729088963087,6.6,155.47,155.44,3.2168]
[1729088963284,6.6,155.48,155.38,6.6]
[1729088963494,29.62,155.51,155.38,6.6]
[1729088963691,6.6,155.5,155.38,6.6]
[1729088964192,6.6,155.51,155.39,1.18215588]
[1729088964688,6.6,155.51,155.44,3.2167]
[1729088965095,3.216,155.48,155.38,6.6]
[1729088965298,36.22,155.51,155.39,1.18214119]
[1729088965496,36.22,155.51,155.38,6.6]
[1729088965693,36.22,155.51,155.39,1.18222171]
[1729088966297,36.22,155.51,155.38,6.6]
[1729088966491,36.22,155.51,155.42,3.2171]
[1729088966798,36.22,155.51,155.38,6.6]
[1729088967196,3.2159,155.49,155.38,6.6]
[1729088967494,36.22,155.51,155.39,1.18221699]
[1729088967699,3.216,155.48,155.44,3.2167]
[1729088967901,36.22,155.51,155.39,1.18221699]
[1729088968101,36.22,155.51,155.38,6.6]
[1729088968499,36.22,155.51,155.42,3.2172]
[1729088968898,3.2163,155.47,155.42,3.2172]
[1729088969298,36.22,155.51,155.38,6.6]
[1729088971009,33.7044,155.54,155.38,6.6]
[1729088971313,6.6,155.53,155.4,29.62]
[1729088971506,4.0844,155.54,155.4,29.62]
[1729088971702,6.6,155.53,155.4,29.62]
[1729088972316,3.2152,155.52,155.47,3.216]
[1729088973807,3.2152,155.52,155.43,6.6]
[1729088974011,3.2152,155.52,155.48,3.2159]
[1729088974415,3.2152,155.52,155.43,6.6]
[1729088974617,6.6,155.53,155.5,3.2155]
[1729088975118,7.2993,155.54,155.5,3.2155]
[1729088975319,4.0844,155.54,155.5,3.2155]
[1729088975518,3.2149,155.53,155.5,3.2155]
[1729088976507,4.0844,155.54,155.45,3.14079131]
[1729088976712,7.2991,155.54,155.51,3.2152]
[1729088978219,4.0844,155.54,155.43,6.6]
[1729088978811,6.6,155.56,155.43,36.22]
[1729088979019,10.7668,155.58,155.44,1.18180395]
[1729088979221,3.2141,155.57,155.48,3.2159]
[1729088979420,4.1668,155.58,155.49,6.6]
[1729088979611,4.1668,155.58,155.5,3.23557785]
[1729088979809,7.3808,155.58,155.54,3.2146]
[1729088980819,7.3808,155.58,155.5,3.23557785]
[1729088981118,7.3808,155.58,155.55,3.2145]
[1729088981512,4.1668,155.58,155.57,3.2141]
[1729088981827,29.62,155.65,155.54,6.6]
[1729088982116,6.6,155.66,155.54,9.74311631]
[1729088982312,31.0471,155.65,155.54,9.74311631]
[1729088982726,31.0471,155.65,155.57,3.2139]
[1729088983221,29.62,155.62,155.54,6.6]
[1729088983524,2.8275,155.61,155.54,6.6]
[1729088983719,9.4275,155.61,155.51,9.82863891]
[1729088983919,3.2137,155.59,155.55,3.2143]
[1729088984114,3.2137,155.59,155.51,9.82863891]
[1729088984314,9.4275,155.61,155.51,9.82863891]
[1729088984520,3.2136,155.6,155.56,3.2142]
[1729088984921,9.4275,155.61,155.56,3.2142]
[1729088985121,9.4275,155.61,155.51,9.82863891]
[1729088985524,12.6409,155.61,155.51,9.82863891]
[1729088985718,12.6409,155.61,155.57,3.214]
[1729088985919,12.6409,155.61,155.51,9.82863891]
[1729088986625,12.6409,155.61,155.57,3.214]
[1729088987123,3.2138,155.59,155.54,3.2147]
[1729088987316,3.2138,155.59,155.51,9.82863891]
[1729088987525,18.51,155.6,155.51,9.82863891]
[1729088988120,3.2137,155.59,155.56,3.2143]
[1729088988325,9.4275,155.61,155.56,3.2143]
[1729088988625,9.4275,155.61,155.51,9.82863891]
[1729088989029,3.2138,155.59,155.56,3.2143]
[1729088989424,18.51,155.6,155.48,87.97]
[1729088989616,9.4275,155.61,155.49,6.6]
[1729088989617,18.51,155.58,155.49,6.6]
[1729088990031,3.2146,155.55,155.52,3.215]
[1729088990325,1.3159,155.57,155.52,3.215]
[1729088990729,3.2144,155.56,155.52,3.215]
[1729088991430,3.2144,155.56,155.48,79.28094433]
[1729088991723,3.2148,155.54,155.46,18.51]
[1729088991923,18.51,155.55,155.47,6.6]
[1729088992125,2.7823,155.54,155.46,3.17860357]
[1729088992427,3.2154,155.51,155.45,6.6]
[1729088992619,3.2154,155.51,155.47,3.216]
[1729088992824,3.2157,155.5,155.45,6.6]
[1729088993326,3.2157,155.5,155.46,3.2162]
[1729088994034,3.2158,155.49,155.45,9.8165]
[1729088994326,18.51,155.53,155.43,6.6]
[1729088994719,18.51,155.53,155.44,3.2166]
[1729088995228,18.51,155.51,155.41,6.6]
[1729088995431,18.51,155.51,155.38,3.25339545]
[1729088995432,18.51,155.48,155.38,3.25339545]
[1729088995627,2.747,155.47,155.39,6.6]
[1729088996319,3.2169,155.44,155.39,6.6]
[1729088997018,3.217,155.43,155.39,9.8178]
[1729088997225,18.51,155.46,155.39,6.6]
[1729088997632,3.2171,155.43,155.39,3.2177]
[1729088997837,18.51,155.46,155.37,3.17936181]
[1729088998225,25.11,155.46,155.36,6.6]
[1729088998428,25.11,155.46,155.35,6.6]
[1729088999227,25.11,155.46,155.34,21.66234173]
[1729088999228,25.11,155.46,155.38,3.218]
[1729088999623,18.51,155.44,155.34,3.15234173]
[1729088999927,3.2181,155.38,155.34,3.2188]
[1729089000731,3.2183,155.37,155.33,3.219]
[1729089000932,2.7655,155.4,155.31,3.20621741]
[1729089001130,18.51,155.39,155.3,9.75665829]
[1729089001327,2.7655,155.4,155.31,18.51]
[1729089001832,2.7655,155.4,155.3,9.75665829]
[1729089002426,18.51,155.39,155.29,18.51]
[1729089002734,3.2188,155.35,155.3,3.2196]
[1729089002934,3.2188,155.35,155.27,6.6]
[1729089003328,2.7655,155.4,155.29,18.51]
[1729089003528,2.7655,155.4,155.31,18.51]
[1729089003739,2.7655,155.4,155.38,3.218]
[1729089003936,2.7655,155.4,155.32,6.6]
[1729089004237,1.4509,155.43,155.32,6.6]
[1729089004435,1.4509,155.43,155.36,18.51]
[1729089004629,1.4509,155.43,155.34,18.51]
[1729089004836,1.4509,155.43,155.39,3.2176]
[1729089005134,3.2173,155.42,155.34,18.51]
[1729089005330,3.2173,155.42,155.37,3.2181]
[1729089005838,3.2173,155.42,155.34,18.51]
[1729089006133,1.4509,155.43,155.34,18.51]
[1729089006337,6.6,155.46,155.36,18.51]
[1729089006533,18.51,155.48,155.37,6.6]
[1729089006534,4.6496,155.48,155.37,6.6]
[1729089006836,1.4335,155.48,155.37,6.6]
[1729089007028,4.6496,155.48,155.37,6.6]
[1729089007435,1.4335,155.48,155.37,6.6]
[1729089008142,4.6496,155.48,155.37,6.6]
[1729089008340,1.4335,155.48,155.39,18.51]
[1729089008537,1.4335,155.48,155.39,21.68880581]
[1729089008730,1.4335,155.48,155.46,3.2163]
[1729089009136,2.789,155.49,155.42,6.6]
[1729089009332,6.6,155.54,155.43,18.51]
[1729089009545,2.7143,155.53,155.43,18.51]
[1729089009744,3.2154,155.51,155.47,3.2161]
[1729089009944,2.7143,155.53,155.43,18.51]
[1729089010841,2.7143,155.53,155.49,3.2157]
[1729089011042,2.7143,155.53,155.43,18.51]
[1729089011544,5.9294,155.53,155.49,3.2158]
[1729089011844,2.7143,155.53,155.49,3.2158]
[1729089012445,2.7143,155.53,155.39,3.17880581]
[1729089012446,2.7143,155.53,155.51,3.2152]
[1729089012743,9.8145,155.56,155.51,3.2152]
[1729089012942,2.7069,155.57,155.53,3.2148]
[1729089013450,2.7069,155.57,155.55,3.2145]
[1729089013640,100.32301427,155.64,155.43,18.51]
[1729089013641,298.638,155.81,155.52,25.11]
[1729089013843,18.51,155.65,155.53,6.6]
[1729089014341,18.51,155.65,155.55,18.51]
[1729089014538,3.9795,155.66,155.62,3.213]
[1729089014848,3.9795,155.66,155.57,18.51]
[1729089014849,2.6326,155.66,155.6,3.21224172]